fUSD/lending_fUSD_20241230
["ID","MTS","AMOUNT","RATE_DAILY","PERIOD"]
[347138535,1735517466914,-500.0,0.00014914,2]
[347138536,1735517466923,-500.0,0.00014914,2]
[347138537,1735517466932,-500.0,0.00014914,2]
[347138538,1735517466941,-500.0,0.00014914,2]
[347138539,1735517466950,-500.0,0.00014914,2]
[347138540,1735517466959,-500.0,0.00014914,2]
[347138541,1735517466969,-84.94375495,0.00014914,2]
[347138542,1735517466981,-415.05624505,0.00014914,2]
[347138543,1735517466990,-521.55,0.00014914,2]
[347138544,1735517466999,-737.5853,0.00014914,2]
[347138545,1735517467008,-500.0,0.00014914,2]
[347138546,1735517467017,-500.0,0.00014914,2]
[347138547,1735517467027,-102.51345506,0.00014914,2]
[347138548,1735517467039,-374.4114727,0.00014914,2]
[347138549,1735517467062,-84.53507224,0.00014914,2]
[347138550,1735517467071,-184.62211036,0.00014914,2]
[347138551,1735517467082,-315.37788964,0.00014914,2]
[347138552,1735517467091,-500.0,0.00014914,2]
[347138553,1735517467101,-500.0,0.00014914,2]
[347138554,1735517467110,-500.0,0.00014914,2]
[347138555,1735517467120,-500.0,0.00014914,2]
[347138556,1735517467129,-500.0,0.00014914,2]
[347138557,1735517467139,-500.0,0.00014914,2]
[347138558,1735517467149,-500.0,0.00014914,2]
[347138559,1735517467158,-603.83,0.00014914,2]
[347138560,1735517467168,-500.0,0.00014914,2]
[347138561,1735517467178,-531.07,0.00014914,2]
[347138562,1735517467188,-549.11,0.00014914,2]
[347138563,1735517467197,-750.84,0.00014914,2]
[347138564,1735517467206,-151.0,0.00014914,2]
[347138565,1735517467216,-151.0,0.00014915,2]
[347138566,1735517467225,-151.0,0.00014915,2]
[347138567,1735517467234,-782.25,0.00014915,2]
[347138568,1735517467244,-723.98,0.00014915,2]
[347138569,1735517467253,-943.56,0.00014915,2]
[347138570,1735517467263,-593.87,0.00014915,2]
[347138571,1735517467273,-1113.72,0.00014915,2]
[347138572,1735517467283,-726.13,0.00014915,2]
[347138573,1735517467293,-755.77,0.00014915,2]
[347138574,1735517467303,-164.40388163,0.00014915,2]
[347138575,1735517467339,-862.00611837,0.00014915,2]
[347138576,1735517467349,-796.26,0.00014915,2]
[347138577,1735517467359,-279.73426853,0.00014915,2]
[347138578,1735517467370,-401.66573147,0.00014915,2]
[347138579,1735517467379,-822.95,0.00014915,2]
[347138580,1735517467389,-454.43426856,0.00014915,2]
[347138581,1735517467697,-500.0,0.00013268,2]
[347138582,1735517467706,-401.45554085,0.00013541,2]
[347138583,1735517467719,-98.54445915,0.00013541,2]
[347138584,1735517467729,-500.0,0.00013542,2]
[347138585,1735517467738,-410.76554085,0.00013815,2]
[347138586,1735517468332,-500.0,0.00013268,2]
[347138587,1735517468342,-500.0,0.00013542,2]
[347138588,1735517468352,-151.0,0.00013795,2]
[347138589,1735517468362,-89.23445915,0.00013815,2]
[347138590,1735517468372,-137.59028585,0.00013816,2]
[347138591,1735517468383,-281.31,0.00013816,2]
[347138592,1735517468521,-49.91971415,0.00013816,2]
[347138593,1735517468532,-450.08028585,0.00013816,2]
[347138594,1735517709474,223.5,0.00010137,2]
[347138595,1735517879854,79.88,0.00010318,2]
[347138596,1735517879878,300.0,0.00010318,2]
[347138597,1735517879908,458.84,0.00010318,2]
[347138598,1735518004464,1087.13,0.00024982,120]
[347138599,1735518233528,500.0,0.00014088,120]
[347138600,1735518389576,6155.92803965,0.00023,120]
[347138618,1735518632335,-450.0,0.00012,2]
[347138619,1735518632344,-231.69257805,0.00012048,2]
[347138620,1735518632354,-429.49,0.0001212,2]
[347138621,1735518632363,-250.0,0.00012133,2]
[347138622,1735518632372,-896.25788924,0.00012135,2]
[347138623,1735518632392,-804.59509462,0.00012135,2]
[347138624,1735518632451,-1050.0,0.00012135,2]
[347138625,1735518632463,-1832.1416959,0.00012135,2]
[347138626,1735518632475,-239.17532024,0.00012135,2]
[347138627,1735518632484,-300.0,0.00012148,2]
[347138628,1735518632495,-1320.28825594,0.00012149,2]
[347138629,1735518632506,-2023.74389123,0.00012149,2]
[347138630,1735518632517,-1555.48465078,0.00012149,2]
[347138631,1735518632528,-387.645,0.00012149,2]
[347138632,1735518632539,-3500.0,0.00012149,2]
[347138633,1735518632550,-4000.0,0.00012149,2]
[347139099,1735518638357,-2602.93862678,0.00012149,2]
[347139100,1735518638368,-903.975,0.00012149,2]
[347139101,1735518638379,-730.5259996,0.00012149,2]
[347139102,1735518638392,-298.76767453,0.00012149,2]
[347139103,1735518638406,-767.32,0.00012149,2]
[347139104,1735518638417,-745.5908,0.00012149,2]
[347139105,1735518638427,-741.53,0.00012149,2]
[347139106,1735518638439,-856.4209,0.00012149,2]
[347139107,1735518638450,-526.33920114,0.00012149,2]
[347139108,1735518638459,-263.95690686,0.00012155,2]
[347139109,1735518638480,-736.04309314,0.00012155,2]
[347139110,1735518638489,-415.8,0.00012171,2]
[347139111,1735518638498,-250.0,0.00012193,2]
[347139112,1735518638507,-231.69257804,0.00012558,2]
[347139113,1735518638516,-838.72,0.00012582,2]
[347139114,1735518638525,-167.31,0.00012738,2]
[347139115,1735518638534,-311.2068,0.00013068,2]
[347139116,1735518638543,-1000.0,0.00013068,2]
[347139117,1735518638552,-231.69257804,0.00013068,2]
[347139118,1735518638561,-154.90832235,0.00013068,2]
[347139119,1735518638570,-265.8709,0.00013075,2]
[347139120,1735518638579,-507.86,0.00013075,2]
[347139122,1735518638587,-501.08,0.00013075,2]
[347139124,1735518638596,-492.23,0.00013075,2]
[347139126,1735518638605,-502.28,0.00013076,2]
[347139128,1735518638614,-503.2,0.00013076,2]
[347139130,1735518638623,-501.67,0.00013077,2]
[347139132,1735518638632,-490.39,0.00013078,2]
[347139134,1735518638642,-503.68,0.0001308,2]
[347139136,1735518638651,-504.7,0.00013083,2]
[347139138,1735518638660,-491.53,0.00013083,2]
[347139140,1735518638669,-493.13,0.00013088,2]
[347139142,1735518638678,-418.00572843,0.00013095,2]
[347139144,1735518638689,-85.04427157,0.00013095,2]
[347139146,1735518638698,-492.09,0.00013106,2]
[347139148,1735518638707,-180.36572843,0.00013123,2]
[347139150,1735518638719,-323.94427157,0.00013123,2]
[347139152,1735518638728,-167.17648415,0.00013143,2]
[347139154,1735518638738,-219.5154,0.00013143,2]
[347139156,1735518638747,-501.54,0.00013148,2]
[347139158,1735518638758,-1000.0,0.00013168,2]
[347139160,1735518638766,-66687.82384428,0.00013168,2]
[347139194,1735518640356,-2431.46712025,0.00013168,2]
[347139195,1735518640367,-304.0860406,0.00013168,2]
[347139196,1735518640379,-313.26909999,0.00013168,2]
[347139197,1735518640390,-2706.86394389,0.00013168,2]
[347139198,1735518640407,-663.16309027,0.00013168,2]
[347139199,1735518640420,-342.88,0.00013168,2]
[347139200,1735518640433,-574.451,0.00013168,2]
[347139201,1735518640444,-644.68702589,0.00013168,2]
[347139202,1735518640456,-610.45399999,0.00013168,2]
[347139203,1735518640489,-450.54181122,0.00013168,2]
[347139236,1735518643416,-411.14884864,0.00013168,2]
[347139245,1735518646370,-1000.0,0.00013168,2]
[347139246,1735518646462,-848.14552062,0.00013168,2]
[347139248,1735518753373,821.28,0.00010671,2]
[347139249,1735518815557,253.82,0.00010137,2]
[347139250,1735518854389,500.0,0.00016008,120]
[347139251,1735518854669,500.0,0.00016036,120]
[347139253,1735519468472,10000.0,0.00025012,120]
[347139254,1735519483060,50000.0,0.00025012,120]
[347139255,1735519494976,50000.0,0.00025012,120]
[347139256,1735519505191,50000.0,0.00025012,120]
[347139257,1735519540569,74831.0,0.00025012,120]
[347139258,1735519618740,871.61,9.835e-05,2]
[347139259,1735519724665,3070.25,0.00025012,120]
[347139260,1735519725523,3070.25,0.00025012,120]
[347139261,1735519726297,3070.25,0.00025012,120]
[347139262,1735519726342,500.0,0.00025012,120]
[347139263,1735519726441,5400.98,0.00025012,120]
[347139264,1735519726519,500.0,0.00025012,120]
[347139265,1735519726590,500.0,0.00025012,120]
[347139266,1735519726747,5400.98,0.00025012,120]
[347139267,1735519727066,1890.2,0.00025012,120]
[347139268,1735519727109,500.0,0.00025012,120]
[347139269,1735519727153,500.0,0.00025012,120]
[347139270,1735519727210,5400.98,0.00025012,120]
[347139271,1735519727249,500.0,0.00025012,120]
[347139272,1735519727292,500.0,0.00025012,120]
[347139273,1735519727338,500.0,0.00025012,120]
[347139274,1735519727403,500.0,0.00025012,120]
[347139275,1735519727511,5400.98,0.00025012,120]
[347139276,1735519727598,3070.25,0.00025012,120]
[347139277,1735519727646,500.0,0.00025012,120]
[347139278,1735519727698,500.0,0.00025012,120]
[347139279,1735519727742,500.0,0.00025012,120]
[347139280,1735519727789,5400.98,0.00025012,120]
[347139281,1735519727901,500.0,0.00025012,120]
[347139282,1735519727945,1309.86,0.00025012,120]
[347139283,1735519727986,500.0,0.00025012,120]
[347139284,1735519728029,514.65,0.00025012,120]
[347139285,1735519728107,5400.98,0.00025012,120]
[347139286,1735519728247,514.65,0.00025012,120]
[347139287,1735519728291,1890.2,0.00025012,120]
[347139288,1735519728385,5400.98,0.00025012,120]
[347139289,1735519728424,500.0,0.00025012,120]
[347139290,1735519728466,500.0,0.00025012,120]
[347139291,1735519728512,514.65,0.00025012,120]
[347139292,1735519728646,500.0,0.00025012,120]
[347139293,1735519728690,3070.25,0.00025012,120]
[347139294,1735519728734,5400.98,0.00025012,120]
[347139295,1735519728782,1309.86,0.00025012,120]
[347139296,1735519728828,514.65,0.00025012,120]
[347139297,1735519728872,500.0,0.00025012,120]
[347139298,1735519728916,1890.2,0.00025012,120]
[347139299,1735519728961,500.0,0.00025012,120]
[347139300,1735519729038,514.65,0.00025012,120]
[347139301,1735519729080,500.0,0.00025012,120]
[347139302,1735519729155,3070.25,0.00025012,120]
[347139303,1735519729195,500.0,0.00025012,120]
[347139304,1735519729322,1309.86,0.00025012,120]
[347139305,1735519729369,500.0,0.00025012,120]
[347139306,1735519729453,500.0,0.00025012,120]
[347139307,1735519729564,5400.98,0.00025012,120]
[347139308,1735519729604,1890.2,0.00025012,120]
[347139309,1735519729645,500.0,0.00025012,120]
[347139310,1735519729753,500.0,0.00025012,120]
[347139311,1735519729793,3070.25,0.00025012,120]
[347139312,1735519729837,5400.98,0.00025012,120]
[347139313,1735519729929,500.0,0.00025012,120]
[347139314,1735519729971,1309.86,0.00025012,120]
[347139315,1735519730011,500.0,0.00025012,120]
[347139316,1735519730078,5400.98,0.00025012,120]
[347139317,1735519730118,1890.2,0.00025012,120]
[347139318,1735519730214,500.0,0.00025012,120]
[347139319,1735519730350,500.0,0.00025012,120]
[347139320,1735519730393,5400.98,0.00025012,120]
[347139321,1735519730512,500.0,0.00025012,120]
[347139322,1735519730555,1309.86,0.00025012,120]
[347139323,1735519730599,3070.25,0.00025012,120]
[347139324,1735519730643,5400.98,0.00025012,120]
[347139325,1735519730690,500.0,0.00025012,120]
[347139326,1735519730768,1890.2,0.00025012,120]
[347139327,1735519730810,584.73,0.00025012,120]
[347139328,1735519730852,5400.98,0.00025012,120]
[347139329,1735519730894,500.0,0.00025012,120]
[347139330,1735519730994,514.65,0.00025012,120]
[347139331,1735519731061,3070.25,0.00025012,120]
[347139332,1735519731105,584.73,0.00025012,120]
[347139333,1735519731149,5400.98,0.00025012,120]
[347139334,1735519731192,1309.86,0.00025012,120]
[347139335,1735519731233,500.0,0.00025012,120]
[347139336,1735519731274,500.0,0.00025012,120]
[347139337,1735519731320,1890.2,0.00025012,120]
[347139338,1735519731367,514.65,0.00025012,120]
[347139339,1735519731935,584.73,0.00025012,120]
[347139340,1735519732011,500.0,0.00025012,120]
[347139341,1735519732075,5400.98,0.00025012,120]
[347139342,1735519732138,500.0,0.00025012,120]
[347139343,1735519732179,3070.25,0.00025012,120]
[347139344,1735519732222,514.65,0.00025012,120]
[347139345,1735519732262,500.0,0.00025012,120]
[347139346,1735519732301,584.73,0.00025012,120]
[347139347,1735519732348,5400.98,0.00025012,120]
[347139348,1735519732391,1309.86,0.00025012,120]
[347139349,1735519732434,500.0,0.00025012,120]
[347139350,1735519732477,514.65,0.00025012,120]
[347139351,1735519732516,1890.2,0.00025012,120]
[347139352,1735519732574,5400.98,0.00025012,120]
[347139353,1735519732615,584.73,0.00025012,120]
[347139354,1735519732662,500.0,0.00025012,120]
[347139355,1735519732704,3070.25,0.00025012,120]
[347139356,1735519732746,514.65,0.00025012,120]
[347139357,1735519732799,1309.86,0.00025012,120]
[347139358,1735519732842,5400.98,0.00025012,120]
[347139359,1735519732885,500.0,0.00025012,120]
[347139360,1735519732927,1890.2,0.00025012,120]
[347139361,1735519732968,514.65,0.00025012,120]
[347139362,1735519733021,584.73,0.00025012,120]
[347139363,1735519733063,5400.98,0.00025012,120]
[347139364,1735519733107,500.0,0.00025012,120]
[347139365,1735519733149,3070.25,0.00025012,120]
[347139366,1735519733191,514.65,0.00025012,120]
[347139367,1735519733232,584.73,0.00025012,120]
[347139368,1735519733276,1309.86,0.00025012,120]
[347139369,1735519733335,5400.98,0.00025012,120]
[347139370,1735519733381,584.73,0.00025012,120]
[347139371,1735519733424,514.65,0.00025012,120]
[347139372,1735519733465,500.0,0.00025012,120]
[347139373,1735519733507,5400.98,0.00025012,120]
[347139374,1735519733550,1890.2,0.00025012,120]
[347139375,1735519733591,584.73,0.00025012,120]
[347139376,1735519733647,514.65,0.00025012,120]
[347139377,1735519733690,478.3,0.00025012,120]
[347139378,1735519733740,1309.86,0.00025012,120]
[347139379,1735519733785,5400.98,0.00025012,120]
[347139380,1735519733830,3070.25,0.00025012,120]
[347139381,1735519733873,514.65,0.00025012,120]
[347139382,1735519733914,584.73,0.00025012,120]
[347139383,1735519733954,5401.20333364,0.00025012,120]
[347139384,1735519734011,1890.2,0.00025012,120]
[347139385,1735519734052,514.65,0.00025012,120]
[347139386,1735519734092,584.73,0.00025012,120]
[347139387,1735519734133,1309.86,0.00025012,120]
[347139388,1735519734172,514.65,0.00025012,120]
[347139389,1735519734212,584.73,0.00025012,120]
[347139390,1735519734265,584.73,0.00025012,120]
[347139391,1735519734307,514.65,0.00025012,120]
[347139392,1735519734349,3070.25,0.00025012,120]
[347139393,1735519734392,1890.2,0.00025012,120]
[347139394,1735519734514,584.73,0.00025012,120]
[347139395,1735519734569,514.65,0.00025012,120]
[347139396,1735519734814,584.73,0.00025012,120]
[347139397,1735519734857,514.65,0.00025012,120]
[347139398,1735519735079,584.73,0.00025012,120]
[347139399,1735519735123,514.65,0.00025012,120]
[347139400,1735519735324,584.73,0.00025012,120]
[347139401,1735519735671,514.65,0.00025012,120]
[347139402,1735519735716,1309.86,0.00025012,120]
[347139403,1735519735760,584.73,0.00025012,120]
[347139404,1735519735805,514.65,0.00025012,120]
[347139405,1735519735848,500.0,0.00025012,120]
[347139406,1735519735910,584.73,0.00025012,120]
[347139407,1735519735954,514.77,0.00025012,120]
[347139408,1735519736050,500.0,0.00025012,120]
[347139409,1735519736136,584.73,0.00025012,120]
[347139410,1735519736246,1890.2,0.00025012,120]
[347139411,1735519736289,3070.25,0.00025012,120]
[347139412,1735519736333,500.0,0.00025012,120]
[347139413,1735519736469,584.73,0.00025012,120]
[347139414,1735519736572,500.0,0.00025012,120]
[347139415,1735519736726,584.73,0.00025012,120]
[347139416,1735519736906,1890.2,0.00025012,120]
[347139417,1735519736947,3070.25,0.00025012,120]
[347139418,1735519736987,367.08,0.00025012,120]
[347139419,1735519737034,1309.86,0.00025012,120]
[347139420,1735519737164,500.0,0.00025012,120]
[347139421,1735519737206,500.0,0.00025012,120]
[347139422,1735519737248,500.0,0.00025012,120]
[347139423,1735519737326,584.73,0.00025012,120]
[347139424,1735519737465,500.0,0.00025012,120]
[347139425,1735519737541,1309.86,0.00025012,120]
[347139426,1735519737582,500.0,0.00025012,120]
[347139427,1735519737638,584.87210744,0.00025012,120]
[347139428,1735519737678,500.0,0.00025012,120]
[347139429,1735519737718,1890.2,0.00025012,120]
[347139430,1735519737788,3070.25,0.00025012,120]
[347139431,1735519737901,1426.42,0.00025012,120]
[347139432,1735519737945,500.0,0.00025012,120]
[347139433,1735519737988,500.0,0.00025012,120]
[347139434,1735519738179,500.0,0.00025012,120]
[347139435,1735519738222,1426.42,0.00025012,120]
[347139436,1735519738271,500.0,0.00025012,120]
[347139437,1735519738491,500.0,0.00025012,120]
[347139438,1735519738537,611.50855804,0.00025012,120]
[347139439,1735519738582,1426.42,0.00025012,120]
[347139440,1735519738628,1309.86,0.00025012,120]
[347139441,1735519738671,1890.2,0.00025012,120]
[347139442,1735519738749,500.0,0.00025012,120]
[347139443,1735519738825,1426.42,0.00025012,120]
[347139444,1735519739119,1426.42,0.00025012,120]
[347139445,1735519739224,3070.25,0.00025012,120]
[347139446,1735519739292,1309.86,0.00025012,120]
[347139447,1735519739353,1426.42,0.00025012,120]
[347139448,1735519739407,1890.2,0.00025012,120]
[347139449,1735519739521,500.0,0.00025012,120]
[347139450,1735519739612,1426.42,0.00025012,120]
[347139451,1735519739658,754.56,0.00025012,120]
[347139452,1735519739834,500.0,0.00025012,120]
[347139453,1735519739875,1426.42,0.00025012,120]
[347139454,1735519739929,754.56,0.00025012,120]
[347139455,1735519740129,1426.42,0.00025012,120]
[347139456,1735519740189,217.64,0.00025012,120]
[347139457,1735519740230,754.56,0.00025012,120]
[347139458,1735519740432,1426.42,0.00025012,120]
[347139459,1735519740475,754.56,0.00025012,120]
[347139460,1735519740536,3070.25,0.00025012,120]
[347139461,1735519740576,1309.86,0.00025012,120]
[347139462,1735519740618,1890.2,0.00025012,120]
[347139463,1735519740660,500.0,0.00025012,120]
[347139464,1735519740759,1426.42,0.00025012,120]
[347139465,1735519740800,754.56,0.00025012,120]
[347139466,1735519740945,500.0,0.00025012,120]
[347139467,1735519740985,3070.25,0.00025012,120]
[347139468,1735519741026,754.56,0.00025012,120]
[347139469,1735519741262,1426.42,0.00025012,120]
[347139470,1735519741318,1309.86,0.00025012,120]
[347139471,1735519741358,500.0,0.00025012,120]
[347139472,1735519741400,1426.42,0.00025012,120]
[347139473,1735519741442,754.56,0.00025012,120]
[347139474,1735519741486,1890.2,0.00025012,120]
[347139475,1735519741524,500.0,0.00025012,120]
[347139476,1735519741655,1426.42,0.00025012,120]
[347139477,1735519741698,754.56,0.00025012,120]
[347139478,1735519741737,1000.0,0.00025012,120]
[347139479,1735519741780,3070.25,0.00025012,120]
[347139480,1735519741822,500.0,0.00025012,120]
[347139481,1735519741866,1309.86,0.00025012,120]
[347139482,1735519741906,1426.42,0.00025012,120]
[347139483,1735519742250,754.56,0.00025012,120]
[347139484,1735519742295,500.0,0.00025012,120]
[347139485,1735519742332,430.5231418,0.00025012,120]
[347139486,1735519742376,1426.42,0.00025012,120]
[347139487,1735519742422,1439.0,0.00025012,120]
[347139488,1735519742462,754.56,0.00025012,120]
[347139489,1735519742505,1890.2,0.00025012,120]
[347139490,1735519742564,500.0,0.00025012,120]
[347139491,1735519742608,1448.06,0.00025012,120]
[347139492,1735519742654,3070.25,0.00025012,120]
[347139493,1735519742695,500.0,0.00025012,120]
[347139494,1735519742737,754.56,0.00025012,120]
[347139495,1735519742778,1309.86,0.00025012,120]
[347139496,1735519742830,2635.53,0.00025012,120]
[347139497,1735519742882,1439.0,0.00025012,120]
[347139498,1735519742929,1426.42,0.00025012,120]
[347139499,1735519742972,1448.06,0.00025012,120]
[347139500,1735519743012,3293.84,0.00025012,120]
[347139501,1735519743056,754.56,0.00025012,120]
[347139502,1735519743115,500.0,0.00025012,120]
[347139503,1735519743169,1890.2,0.00025012,120]
[347139504,1735519743223,1426.42,0.00025012,120]
[347139505,1735519743276,1448.06,0.00025012,120]
[347139506,1735519743321,754.56,0.00025012,120]
[347139507,1735519743381,500.0,0.00025012,120]
[347139508,1735519743432,2635.53,0.00025012,120]
[347139509,1735519743479,3070.25,0.00025012,120]
[347139510,1735519743529,1448.06,0.00025012,120]
[347139511,1735519743575,1426.42,0.00025012,120]
[347139512,1735519743620,754.56,0.00025012,120]
[347139513,1735519743666,500.0,0.00025012,120]
[347139514,1735519743724,1309.86,0.00025012,120]
[347139515,1735519743773,1439.0,0.00025012,120]
[347139516,1735519743823,3293.84,0.00025012,120]
[347139517,1735519743873,1448.06,0.00025012,120]
[347139518,1735519743928,1426.42,0.00025012,120]
[347139519,1735519744037,754.56,0.00025012,120]
[347139520,1735519744121,500.0,0.00025012,120]
[347139521,1735519744167,1448.06,0.00025012,120]
[347139522,1735519744222,1426.42,0.00025012,120]
[347139523,1735519744268,1890.2,0.00025012,120]
[347139524,1735519744313,754.56,0.00025012,120]
[347139525,1735519744361,3070.34,0.00025012,120]
[347139526,1735519744414,500.0,0.00025012,120]
[347139527,1735519744525,1448.06,0.00025012,120]
[347139528,1735519744581,1439.0,0.00025012,120]
[347139529,1735519744647,1426.42,0.00025012,120]
[347139530,1735519744949,3293.84,0.00025012,120]
[347139531,1735519744991,754.56,0.00025012,120]
[347139532,1735519745034,2635.53,0.00025012,120]
[347139533,1735519745076,1309.86,0.00025012,120]
[347139534,1735519745127,500.0,0.00025012,120]
[347139535,1735519745169,1448.06,0.00025012,120]
[347139536,1735519745210,1426.42,0.00025012,120]
[347139537,1735519745252,754.56,0.00025012,120]
[347139538,1735519745297,1890.2,0.00025012,120]
[347139539,1735519745339,500.0,0.00025012,120]
[347139540,1735519745397,500.0,0.00025012,120]
[347139541,1735519745441,1448.06,0.00025012,120]
[347139542,1735519745485,1439.0,0.00025012,120]
[347139543,1735519745528,1426.63582351,0.00025012,120]
[347139544,1735519745569,3293.84,0.00025012,120]
[347139545,1735519745614,754.56,0.00025012,120]
[347139546,1735519745664,1309.86,0.00025012,120]
[347139547,1735519745730,385.65,0.00025012,120]
[347139548,1735519745796,500.0,0.00025012,120]
[347139549,1735519745838,2635.53,0.00025012,120]
[347139550,1735519745879,1448.06,0.00025012,120]
[347139551,1735519745942,754.56,0.00025012,120]
[347139552,1735519746117,500.0,0.00025012,120]
[347139553,1735519746165,500.0,0.00025012,120]
[347139554,1735519746207,1448.06,0.00025012,120]
[347139555,1735519746247,754.56,0.00025012,120]
[347139556,1735519746288,1890.2,0.00025012,120]
[347139557,1735519746332,1448.06,0.00025012,120]
[347139558,1735519746379,3293.84,0.00025012,120]
[347139559,1735519746424,249.33,0.00025012,120]
[347139560,1735519746473,1439.0,0.00025012,120]
[347139561,1735519746515,754.56,0.00025012,120]
[347139562,1735519746560,1310.01,0.00025012,120]
[347139563,1735519746637,2635.53,0.00025012,120]
[347139564,1735519746679,1448.06,0.00025012,120]
[347139565,1735519746721,754.56,0.00025012,120]
[347139566,1735519746766,500.0,0.00025012,120]
[347139567,1735519746812,754.65232315,0.00025012,120]
[347139568,1735519746855,1448.06,0.00025012,120]
[347139569,1735519746897,1439.0,0.00025012,120]
[347139570,1735519746945,3293.84,0.00025012,120]
[347139571,1735519746991,1448.06,0.00025012,120]
[347139572,1735519747033,2635.53,0.00025012,120]
[347139573,1735519747080,500.0,0.00025012,120]
[347139574,1735519747125,1448.06,0.00025012,120]
[347139575,1735519747199,3293.84,0.00025012,120]
[347139576,1735519747243,1439.0,0.00025012,120]
[347139577,1735519747289,1448.06,0.00025012,120]
[347139578,1735519747398,1448.06,0.00025012,120]
[347139579,1735519747441,506.27,0.00025012,120]
[347139580,1735519747485,500.0,0.00025012,120]
[347139581,1735519747553,1448.06,0.00025012,120]
[347139582,1735519747658,500.0,0.00025012,120]
[347139583,1735519747828,1448.06,0.00025012,120]
[347139584,1735519747924,500.0,0.00025012,120]
[347139585,1735519748021,500.0,0.00025012,120]
[347139586,1735519748107,1448.06,0.00025012,120]
[347139587,1735519748156,2635.53,0.00025012,120]
[347139588,1735519748197,500.0,0.00025012,120]
[347139589,1735519748290,500.0,0.00025012,120]
[347139590,1735519748332,529.5,0.00025012,120]
[347139591,1735519748428,1448.06,0.00025012,120]
[347139592,1735519748528,3293.84,0.00025012,120]
[347139593,1735519748579,500.0,0.00025012,120]
[347139594,1735519748635,529.5,0.00025012,120]
[347139595,1735519748704,1448.06,0.00025012,120]
[347139596,1735519748753,1439.0,0.00025012,120]
[347139597,1735519748837,500.0,0.00025012,120]
[347139598,1735519748951,500.0,0.00025012,120]
[347139599,1735519749000,1448.25189583,0.00025012,120]
[347139600,1735519749052,1385.01,0.00025012,120]
[347139601,1735519749112,529.5,0.00025012,120]
[347139602,1735519749165,506.27,0.00025012,120]
[347139603,1735519749221,2635.53,0.00025012,120]
[347139604,1735519749271,500.0,0.00025012,120]
[347139605,1735519749333,1439.0,0.00025012,120]
[347139606,1735519749387,529.5,0.00025012,120]
[347139607,1735519749443,1385.01,0.00025012,120]
[347139608,1735519749494,500.0,0.00025012,120]
[347139609,1735519749546,500.0,0.00025012,120]
[347139610,1735519749635,3293.84,0.00025012,120]
[347139611,1735519749689,1385.01,0.00025012,120]